[Event "*** SCC Grand Prix: Titled Tuesday Blitz"]
[Site "Chess.com"]
[Date "2020.08.25"]
[Round "4"]
[White "Arjun2002"]
[Black "Anton_Demchenko"]
[Result "1-0"]
[WhiteElo "2713"]
[BlackElo "2837"]
[TimeControl "180+1"]
[EndTime "10:42:41 PDT"]
[Termination "Arjun2002 won by resignation"]

1. e4 {[%clk 0:03:00.9]} 1... e5 {[%clk 0:02:58.3]} 2. Nf3 {[%clk 0:03:00.9]}
2... Nc6 {[%clk 0:02:59]} 3. Bb5 {[%clk 0:02:57.7]} 3... a6 {[%clk 0:02:58.4]}
4. Ba4 {[%clk 0:02:57.7]} 4... Nge7 {[%clk 0:02:58.4]} 5. O-O {[%clk 0:02:56.1]}
5... Ng6 {[%clk 0:02:56.8]} 6. c3 {[%clk 0:02:55.5]} 6... d6 {[%clk 0:02:56.4]}
7. d4 {[%clk 0:02:55.3]} 7... Bd7 {[%clk 0:02:56.9]} 8. Be3 {[%clk 0:02:47.3]}
8... Be7 {[%clk 0:02:56.6]} 9. Nbd2 {[%clk 0:02:47.4]} 9... O-O {[%clk
0:02:54.7]} 10. h3 {[%clk 0:02:43.3]} 10... b5 {[%clk 0:02:53.4]} 11. Bb3 {[%clk
0:02:42.3]} 11... exd4 {[%clk 0:02:53.7]} 12. cxd4 {[%clk 0:02:41.5]} 12... Na5
{[%clk 0:02:53.9]} 13. Bc2 {[%clk 0:02:40.5]} 13... c5 {[%clk 0:02:54.8]} 14.
Rc1 {[%clk 0:02:32]} 14... Rc8 {[%clk 0:02:47.8]} 15. Bb1 {[%clk 0:02:31]} 15...
Re8 {[%clk 0:02:45.9]} 16. Re1 {[%clk 0:02:18.7]} 16... Bf6 {[%clk 0:02:19.7]}
17. dxc5 {[%clk 0:02:12.9]} 17... Bxb2 {[%clk 0:02:15.8]} 18. Rc2 {[%clk
0:02:13.2]} 18... Ba3 {[%clk 0:02:16.2]} 19. cxd6 {[%clk 0:02:10.6]} 19... Bxd6
{[%clk 0:02:14]} 20. Nd4 {[%clk 0:02:00.4]} 20... Ne5 {[%clk 0:02:02.6]} 21.
Rxc8 {[%clk 0:01:37.6]} 21... Bxc8 {[%clk 0:01:52.1]} 22. N2f3 {[%clk
0:01:31.3]} 22... Nac4 {[%clk 0:01:46.9]} 23. Bc1 {[%clk 0:01:28.3]} 23... Bb4
{[%clk 0:01:42.4]} 24. Rf1 {[%clk 0:01:25.5]} 24... Bc5 {[%clk 0:01:32.1]} 25.
Nxe5 {[%clk 0:01:21.9]} 25... Nxe5 {[%clk 0:01:31.5]} 26. Nb3 {[%clk 0:01:20.1]}
26... Bb6 {[%clk 0:01:27.9]} 27. Qe2 {[%clk 0:01:18.9]} 27... Qh4 {[%clk
0:01:24.5]} 28. Be3 {[%clk 0:01:15]} 28... Bc7 {[%clk 0:01:13.7]} 29. Nd2 {[%clk
0:01:07]} 29... Be6 {[%clk 0:00:55.5]} 30. Rc1 {[%clk 0:01:04]} 30... Bb8 {[%clk
0:00:50.7]} 31. Bd4 {[%clk 0:00:38]} 31... Qf4 {[%clk 0:00:41.8]} 32. Be3 {[%clk
0:00:34.6]} 32... Qf6 {[%clk 0:00:39.6]} 33. Bd4 {[%clk 0:00:30]} 33... Qg5
{[%clk 0:00:34.9]} 34. Be3 {[%clk 0:00:27.5]} 34... Qf6 {[%clk 0:00:30.8]} 35.
Nf1 {[%clk 0:00:21.8]} 35... Bc4 {[%clk 0:00:28.8]} 36. Qd2 {[%clk 0:00:16.4]}
36... Rd8 {[%clk 0:00:28.3]} 37. Qa5 {[%clk 0:00:16.3]} 37... Re8 {[%clk
0:00:21.2]} 38. Ng3 {[%clk 0:00:15.8]} 38... g6 {[%clk 0:00:18.1]} 39. Qb6
{[%clk 0:00:15.3]} 39... Qxb6 {[%clk 0:00:15.3]} 40. Bxb6 {[%clk 0:00:16.2]}
40... h5 {[%clk 0:00:13.9]} 41. Rd1 {[%clk 0:00:14.8]} 41... Nc6 {[%clk
0:00:10.3]} 42. Nf1 {[%clk 0:00:13.6]} 42... Bf4 {[%clk 0:00:08.2]} 43. Ne3
{[%clk 0:00:13.3]} 43... Be6 {[%clk 0:00:08.5]} 44. Nd5 {[%clk 0:00:13.2]} 44...
Be5 {[%clk 0:00:08.8]} 45. Bc2 {[%clk 0:00:10.6]} 45... Rb8 {[%clk 0:00:08.6]}
46. Be3 {[%clk 0:00:09.7]} 46... Bg7 {[%clk 0:00:04]} 47. Bb3 {[%clk 0:00:09.7]}
47... Rb7 {[%clk 0:00:02.1]} 48. Rc1 {[%clk 0:00:09.9]} 48... Na5 {[%clk
0:00:02.3]} 49. Bd1 {[%clk 0:00:07.6]} 49... Nc4 {[%clk 0:00:02.6]} 50. Bc5
{[%clk 0:00:07.2]} 50... Rd7 {[%clk 0:00:03.1]} 51. Bf3 {[%clk 0:00:07]} 51...
Bxd5 {[%clk 0:00:02.8]} 52. exd5 {[%clk 0:00:07.9]} 52... Ne5 {[%clk 0:00:03.6]}
53. Be4 {[%clk 0:00:08.1]} 53... f5 {[%clk 0:00:03.1]} 54. Bc2 {[%clk
0:00:08.3]} 54... Rxd5 {[%clk 0:00:03.4]} 55. Bb3 {[%clk 0:00:08.5]} 55... Nc4
{[%clk 0:00:04.1]} 56. Rxc4 {[%clk 0:00:08.6]} 56... bxc4 {[%clk 0:00:05]} 57.
Bxc4 {[%clk 0:00:08.8]} 57... Kf7 {[%clk 0:00:03.4]} 58. Bxd5+ {[%clk
0:00:09.1]} 58... Ke8 {[%clk 0:00:04.3]} 59. Kf1 {[%clk 0:00:09.5]} 59... Kd7
{[%clk 0:00:04.2]} 60. Bf7 {[%clk 0:00:09.2]} 60... Kc6 {[%clk 0:00:04.6]} 61.
Be3 {[%clk 0:00:08.9]} 61... g5 {[%clk 0:00:04.8]} 62. Bxh5 {[%clk 0:00:09.1]}
62... f4 {[%clk 0:00:04.8]} 63. Bd2 {[%clk 0:00:09.5]} 63... Kb5 {[%clk
0:00:05.4]} 64. Be2+ {[%clk 0:00:09.6]} 64... Kb6 {[%clk 0:00:06]} 65. g3 {[%clk
0:00:10]} 65... Be5 {[%clk 0:00:06]} 66. gxf4 {[%clk 0:00:10.1]} 66... gxf4
{[%clk 0:00:06.9]} 67. Kg2 {[%clk 0:00:10.5]} 67... Kc5 {[%clk 0:00:07.3]} 68.
Kf3 {[%clk 0:00:11]} 68... Bg7 {[%clk 0:00:06.1]} 69. Bxf4 {[%clk 0:00:11.4]}
69... Kb4 {[%clk 0:00:07]} 70. Be3 {[%clk 0:00:12.3]} 70... a5 {[%clk
0:00:07.1]} 71. Bd3 {[%clk 0:00:12.2]} 71... Ka3 {[%clk 0:00:07.7]} 72. Bc4
{[%clk 0:00:12.6]} 72... Kb4 {[%clk 0:00:07.8]} 73. Be6 {[%clk 0:00:13.2]} 73...
a4 {[%clk 0:00:08.5]} 74. h4 {[%clk 0:00:13.7]} 74... Ka3 {[%clk 0:00:08.1]} 75.
h5 {[%clk 0:00:13.9]} 75... Bc3 {[%clk 0:00:07.9]} 76. h6 {[%clk 0:00:14]} 76...
Bh8 {[%clk 0:00:07.3]} 77. h7 {[%clk 0:00:14.4]} 77... Bf6 {[%clk 0:00:07.3]}
78. Ke4 {[%clk 0:00:14.9]} 78... Bh8 {[%clk 0:00:06.3]} 79. Bd4 {[%clk
0:00:15.3]} 79... Bg7 {[%clk 0:00:06.2]} 80. Bxg7 {[%clk 0:00:14.6]} 80... Kb4
{[%clk 0:00:06.3]} 81. h8=Q {[%clk 0:00:14.5]} 1-0

[Event "*** SCC Grand Prix: Titled Tuesday Blitz"]
[Site "Chess.com"]
[Date "2020.08.25"]
[Round "4"]
[White "amintabatabaei"]
[Black "FontVella8"]
[Result "0-1"]
[WhiteElo "2982"]
[BlackElo "2486"]
[TimeControl "180+1"]
[EndTime "10:42:41 PDT"]
[Termination "FontVella8 won by checkmate"]

1. e4 {[%clk 0:03:00.9]} 1... e5 {[%clk 0:02:58.7]} 2. Nf3 {[%clk 0:02:59.4]}
2... Nc6 {[%clk 0:02:58.9]} 3. Bc4 {[%clk 0:02:56.9]} 3... Bc5 {[%clk
0:02:58.4]} 4. c3 {[%clk 0:02:57.1]} 4... Nf6 {[%clk 0:02:58.1]} 5. d4 {[%clk
0:02:57.7]} 5... exd4 {[%clk 0:02:54.3]} 6. cxd4 {[%clk 0:02:58.6]} 6... Bb4+
{[%clk 0:02:52.5]} 7. Bd2 {[%clk 0:02:58.9]} 7... Nxe4 {[%clk 0:02:49.3]} 8.
Bxb4 {[%clk 0:02:58.4]} 8... Nxb4 {[%clk 0:02:48.8]} 9. Bxf7+ {[%clk 0:02:57.9]}
9... Kxf7 {[%clk 0:02:48.6]} 10. Qb3+ {[%clk 0:02:58.5]} 10... d5 {[%clk
0:02:45]} 11. Ne5+ {[%clk 0:02:55.4]} 11... Kf6 {[%clk 0:02:21.7]} 12. Qxb4
{[%clk 0:02:56.3]} 12... c5 {[%clk 0:02:21.8]} 13. Qa4 {[%clk 0:02:46.3]} 13...
Qe8 {[%clk 0:02:08.2]} 14. Qxe8 {[%clk 0:02:02.4]} 14... Rxe8 {[%clk 0:02:09.1]}
15. O-O {[%clk 0:02:03]} 15... cxd4 {[%clk 0:02:08.2]} 16. Nf3 {[%clk
0:02:02.2]} 16... d3 {[%clk 0:02:05.6]} 17. Rd1 {[%clk 0:02:02.1]} 17... Bf5
{[%clk 0:01:52.4]} 18. Rxd3 {[%clk 0:01:53.2]} 18... Ng5 {[%clk 0:01:45.7]} 19.
Rd1 {[%clk 0:01:52.8]} 19... Nxf3+ {[%clk 0:01:45.5]} 20. gxf3 {[%clk
0:01:53.7]} 20... d4 {[%clk 0:01:33.7]} 21. Na3 {[%clk 0:01:49.4]} 21... d3
{[%clk 0:01:32]} 22. Rd2 {[%clk 0:01:48.8]} 22... Rac8 {[%clk 0:01:29.4]} 23.
Rad1 {[%clk 0:01:41.4]} 23... a6 {[%clk 0:01:26.8]} 24. Kg2 {[%clk 0:01:38.4]}
24... Rc5 {[%clk 0:01:13.7]} 25. Nb1 {[%clk 0:01:37.5]} 25... Bg6 {[%clk
0:01:03.9]} 26. Nc3 {[%clk 0:01:33.7]} 26... Rg5+ {[%clk 0:01:03.5]} 27. Kh1
{[%clk 0:01:32.4]} 27... Rge5 {[%clk 0:00:47.2]} 28. Kg2 {[%clk 0:01:20.2]}
28... Rg5+ {[%clk 0:00:45.6]} 29. Kh1 {[%clk 0:01:17.5]} 29... Rge5 {[%clk
0:00:40.7]} 30. a3 {[%clk 0:01:17.7]} 30... Re1+ {[%clk 0:00:30.9]} 31. Kg2
{[%clk 0:01:16.9]} 31... Kg5 {[%clk 0:00:27.7]} 32. Kg3 {[%clk 0:01:09.4]} 32...
Rxd1 {[%clk 0:00:24.9]} 33. Rxd1 {[%clk 0:01:10.3]} 33... h5 {[%clk 0:00:23]}
34. h4+ {[%clk 0:01:08.8]} 34... Kf6 {[%clk 0:00:23.3]} 35. Nd5+ {[%clk
0:01:06.4]} 35... Kf7 {[%clk 0:00:16.5]} 36. Nf4 {[%clk 0:01:04.8]} 36... Rd8
{[%clk 0:00:15.5]} 37. Rd2 {[%clk 0:00:58.3]} 37... Rd4 {[%clk 0:00:13.1]} 38.
Ng2 {[%clk 0:00:57.9]} 38... Bf5 {[%clk 0:00:11.7]} 39. Ne3 {[%clk 0:00:57.7]}
39... Kf6 {[%clk 0:00:10.2]} 40. f4 {[%clk 0:00:58.2]} 40... g6 {[%clk
0:00:09.3]} 41. Kf3 {[%clk 0:00:57.4]} 41... Be4+ {[%clk 0:00:08.8]} 42. Kg3
{[%clk 0:00:57.6]} 42... Bf5 {[%clk 0:00:09.4]} 43. Nd1 {[%clk 0:00:57.6]} 43...
Ke6 {[%clk 0:00:06.7]} 44. Nc3 {[%clk 0:00:56.9]} 44... Kd6 {[%clk 0:00:07]} 45.
Kf3 {[%clk 0:00:57]} 45... Kc5 {[%clk 0:00:06.5]} 46. Ke3 {[%clk 0:00:57.6]}
46... Rd8 {[%clk 0:00:05]} 47. f3 {[%clk 0:00:57.7]} 47... Kc4 {[%clk
0:00:05.1]} 48. Ne4 {[%clk 0:00:56]} 48... Kb3 {[%clk 0:00:02.5]} 49. Nc5+
{[%clk 0:00:49.9]} 49... Ka2 {[%clk 0:00:03]} 50. a4 {[%clk 0:00:29.4]} 50...
Re8+ {[%clk 0:00:02.8]} 51. Kf2 {[%clk 0:00:22]} 51... Kb1 {[%clk 0:00:02.8]}
52. b4 {[%clk 0:00:19.8]} 52... Kc1 {[%clk 0:00:02.4]} 53. Nb3+ {[%clk
0:00:20.1]} 53... Kb1 {[%clk 0:00:03.1]} 54. a5 {[%clk 0:00:20.4]} 54... Rc8
{[%clk 0:00:02.9]} 55. Nd4 {[%clk 0:00:16.5]} 55... Rc2 {[%clk 0:00:02.7]} 56.
Ke3 {[%clk 0:00:17]} 56... Kc1 {[%clk 0:00:02.9]} 57. Nb3+ {[%clk 0:00:13.1]}
57... Kb2 {[%clk 0:00:03.4]} 58. Nc5 {[%clk 0:00:13.5]} 58... Kc3 {[%clk
0:00:03]} 59. Na4+ {[%clk 0:00:10]} 59... Kxb4 {[%clk 0:00:03]} 60. Nb6 {[%clk
0:00:10.4]} 60... Kc3 {[%clk 0:00:03.5]} 61. Nd5+ {[%clk 0:00:10.5]} 61... Kc4
{[%clk 0:00:03.7]} 62. Ne7 {[%clk 0:00:10.1]} 62... Rxd2 {[%clk 0:00:03.3]} 63.
Kxd2 {[%clk 0:00:10.1]} 63... Kb5 {[%clk 0:00:04]} 64. Kc3 {[%clk 0:00:07.4]}
64... Kxa5 {[%clk 0:00:04.1]} 65. Nd5 {[%clk 0:00:08.3]} 65... b5 {[%clk
0:00:04.1]} 66. Ne3 {[%clk 0:00:07.8]} 66... b4+ {[%clk 0:00:04.1]} 67. Kc4
{[%clk 0:00:08.4]} 67... Ka4 {[%clk 0:00:02.8]} 68. Nd1 {[%clk 0:00:08.8]} 68...
Ka3 {[%clk 0:00:02.8]} 69. Nf2 {[%clk 0:00:07.7]} 69... a5 {[%clk 0:00:03.4]}
70. Nd1 {[%clk 0:00:08]} 70... a4 {[%clk 0:00:03.8]} 71. Kd4 {[%clk 0:00:06.8]}
71... b3 {[%clk 0:00:04.2]} 72. Kc3 {[%clk 0:00:07.3]} 72... Ka2 {[%clk
0:00:04.5]} 73. Nb2 {[%clk 0:00:07.8]} 73... a3 {[%clk 0:00:04.5]} 74. Nc4
{[%clk 0:00:08.1]} 74... b2 {[%clk 0:00:04.9]} 75. Kd4 {[%clk 0:00:08.6]} 75...
b1=Q {[%clk 0:00:05.2]} 76. Ke3 {[%clk 0:00:09.1]} 76... d2 {[%clk 0:00:05.6]}
77. Kxd2 {[%clk 0:00:08.9]} 77... Qd3+ {[%clk 0:00:05.9]} 78. Ke1 {[%clk
0:00:09.7]} 78... Qxc4 {[%clk 0:00:06.6]} 79. Kf2 {[%clk 0:00:10.1]} 79... Qxf4
{[%clk 0:00:07.4]} 80. Kg2 {[%clk 0:00:10.5]} 80... Qxh4 {[%clk 0:00:08]} 81. f4
{[%clk 0:00:11.4]} 81... Qxf4 {[%clk 0:00:07.8]} 82. Kg1 {[%clk 0:00:11.7]}
82... Qg3+ {[%clk 0:00:07]} 83. Kh1 {[%clk 0:00:12.6]} 83... Be4# {[%clk
0:00:07.4]} 0-1

[Event "*** SCC Grand Prix: Titled Tuesday Blitz"]
[Site "Chess.com"]
[Date "2020.08.25"]
[Round "4"]
[White "Moon_stone123"]
[Black "KatarinaOstojic"]
[Result "1/2-1/2"]
[WhiteElo "2527"]
[BlackElo "2314"]
[TimeControl "180+1"]
[EndTime "10:42:56 PDT"]
[Termination "Game drawn by repetition"]

1. e4 {[%clk 0:03:00.9]} 1... c5 {[%clk 0:02:59.5]} 2. Nf3 {[%clk 0:03:00.6]}
2... d6 {[%clk 0:03:00]} 3. d4 {[%clk 0:03:01]} 3... cxd4 {[%clk 0:03:00.9]} 4.
Nxd4 {[%clk 0:03:01.9]} 4... Nf6 {[%clk 0:03:01.1]} 5. Nc3 {[%clk 0:03:02.4]}
5... a6 {[%clk 0:03:01.7]} 6. h3 {[%clk 0:03:01.6]} 6... e5 {[%clk 0:03:01.2]}
7. Nde2 {[%clk 0:03:02]} 7... h5 {[%clk 0:03:00.6]} 8. Bg5 {[%clk 0:03:00.5]}
8... Be6 {[%clk 0:03:00.9]} 9. g3 {[%clk 0:02:48.3]} 9... Be7 {[%clk 0:02:59.4]}
10. Bg2 {[%clk 0:02:48.4]} 10... Nbd7 {[%clk 0:02:59.4]} 11. Qd2 {[%clk
0:02:48]} 11... O-O {[%clk 0:02:55.5]} 12. a4 {[%clk 0:02:47]} 12... Rc8 {[%clk
0:02:55.8]} 13. O-O {[%clk 0:02:45.5]} 13... Nb6 {[%clk 0:02:49]} 14. b3 {[%clk
0:02:44.4]} 14... Re8 {[%clk 0:02:38.3]} 15. a5 {[%clk 0:02:44.1]} 15... Nbd7
{[%clk 0:02:36.5]} 16. Na4 {[%clk 0:02:44.5]} 16... Qc7 {[%clk 0:02:32.3]} 17.
c4 {[%clk 0:02:40.4]} 17... Nc5 {[%clk 0:02:30.6]} 18. Nxc5 {[%clk 0:02:36.7]}
18... dxc5 {[%clk 0:02:21.6]} 19. Bxf6 {[%clk 0:02:35.8]} 19... Bxf6 {[%clk
0:02:20.7]} 20. Nc3 {[%clk 0:02:35.2]} 20... Rcd8 {[%clk 0:02:17.9]} 21. Nd5
{[%clk 0:02:35.4]} 21... Bxd5 {[%clk 0:02:18.1]} 22. cxd5 {[%clk 0:02:32.3]}
22... Rd6 {[%clk 0:02:12.5]} 23. Rfc1 {[%clk 0:02:30.8]} 23... b6 {[%clk
0:02:04]} 24. axb6 {[%clk 0:02:20.4]} 24... Qxb6 {[%clk 0:02:04.2]} 25. Qa5
{[%clk 0:02:09.3]} 25... Qxb3 {[%clk 0:02:02.7]} 26. Qxc5 {[%clk 0:02:09.2]}
26... Red8 {[%clk 0:02:00.7]} 27. Rc3 {[%clk 0:02:06.5]} 27... Qb2 {[%clk
0:01:55.7]} 28. Rca3 {[%clk 0:02:06.1]} 28... Be7 {[%clk 0:01:49.4]} 29. Qc1
{[%clk 0:01:59.9]} 29... Qb5 {[%clk 0:01:46.7]} 30. Ra5 {[%clk 0:01:58.7]} 30...
Qd3 {[%clk 0:01:42.7]} 31. Qf1 {[%clk 0:01:55.1]} 31... Qd4 {[%clk 0:01:39.9]}
32. Rxa6 {[%clk 0:01:52.5]} 32... Rxa6 {[%clk 0:01:40.5]} 33. Rxa6 {[%clk
0:01:46.6]} 33... Bc5 {[%clk 0:01:40.9]} 34. Ra2 {[%clk 0:01:39.4]} 34... Rb8
{[%clk 0:01:34.5]} 35. Kh2 {[%clk 0:01:36.3]} 35... Rb2 {[%clk 0:01:33.7]} 36.
Rxb2 {[%clk 0:01:36.6]} 36... Qxb2 {[%clk 0:01:34.6]} 37. f4 {[%clk 0:01:35.8]}
37... exf4 {[%clk 0:01:27.9]} 38. Qxf4 {[%clk 0:01:36.7]} 38... Qa3 {[%clk
0:01:24.2]} 39. e5 {[%clk 0:01:32.4]} 39... Be3 {[%clk 0:01:18.7]} 40. Qe4
{[%clk 0:01:27.3]} 40... Qc1 {[%clk 0:01:16.9]} 41. h4 {[%clk 0:01:27]} 41...
Qg1+ {[%clk 0:01:07.8]} 42. Kh3 {[%clk 0:01:26.8]} 42... Bf2 {[%clk 0:01:00.5]}
43. d6 {[%clk 0:01:23.6]} 43... Qd1 {[%clk 0:00:55.1]} 44. e6 {[%clk 0:00:40.8]}
44... Qg4+ {[%clk 0:00:37.1]} 45. Qxg4 {[%clk 0:00:35.1]} 45... hxg4+ {[%clk
0:00:37.4]} 46. Kxg4 {[%clk 0:00:36]} 46... fxe6 {[%clk 0:00:38.1]} 47. d7
{[%clk 0:00:31.5]} 47... Bb6 {[%clk 0:00:37.2]} 48. Kg5 {[%clk 0:00:30.5]} 48...
Kf7 {[%clk 0:00:36.9]} 49. Bc6 {[%clk 0:00:31.1]} 49... Bc7 {[%clk 0:00:34.9]}
50. Kg4 {[%clk 0:00:29.7]} 50... Kf6 {[%clk 0:00:31.8]} 51. Kh5 {[%clk
0:00:27.6]} 51... Ke7 {[%clk 0:00:29.1]} 52. g4 {[%clk 0:00:26.5]} 52... Kf6
{[%clk 0:00:26.2]} 53. g5+ {[%clk 0:00:25]} 53... Kf7 {[%clk 0:00:20.5]} 54. Ba4
{[%clk 0:00:25.5]} 54... Bd8 {[%clk 0:00:17.9]} 55. Kg4 {[%clk 0:00:25.5]} 55...
Bc7 {[%clk 0:00:17.7]} 56. Kf3 {[%clk 0:00:24.9]} 56... Kg6 {[%clk 0:00:16.7]}
57. Kg4 {[%clk 0:00:21.8]} 57... Kf7 {[%clk 0:00:16.8]} 58. Bb5 {[%clk
0:00:20.2]} 58... Bd8 {[%clk 0:00:16.6]} 59. Kh3 {[%clk 0:00:12]} 59... Bc7
{[%clk 0:00:16.4]} 60. Ba4 {[%clk 0:00:11.2]} 60... Bd8 {[%clk 0:00:16.5]} 61.
Kg2 {[%clk 0:00:11]} 61... Kg6 {[%clk 0:00:16.1]} 62. Bc2+ {[%clk 0:00:10.5]}
62... Kf7 {[%clk 0:00:14.3]} 63. Kf3 {[%clk 0:00:10.4]} 63... Bc7 {[%clk
0:00:14.3]} 64. Ke4 {[%clk 0:00:10]} 64... Ke7 {[%clk 0:00:13.8]} 65. Ba4 {[%clk
0:00:10.2]} 65... Kf7 {[%clk 0:00:13.8]} 66. Kd4 {[%clk 0:00:08.6]} 66... Bb6+
{[%clk 0:00:12.8]} 67. Kc4 {[%clk 0:00:08.5]} 67... Bd8 {[%clk 0:00:13.7]} 68.
Kb5 {[%clk 0:00:08.7]} 68... Kg6 {[%clk 0:00:13.8]} 69. Bd1 {[%clk 0:00:06.4]}
69... e5 {[%clk 0:00:13.6]} 70. Kc6 {[%clk 0:00:05.9]} 70... Kf5 {[%clk
0:00:10.8]} 71. Kd5 {[%clk 0:00:06.1]} 71... Kf4 {[%clk 0:00:10.1]} 72. Ke6
{[%clk 0:00:05.5]} 72... Kg3 {[%clk 0:00:06]} 73. h5 {[%clk 0:00:04.6]} 73...
Bxg5 {[%clk 0:00:06.5]} 74. Kxe5 {[%clk 0:00:04.1]} 74... Kh4 {[%clk 0:00:06.8]}
75. Ke6 {[%clk 0:00:03.8]} 75... Bf6 {[%clk 0:00:07.4]} 76. Kf7 {[%clk
0:00:04.1]} 76... Kg5 {[%clk 0:00:07]} 77. Be2 {[%clk 0:00:03.1]} 77... Kh6
{[%clk 0:00:04.8]} 78. Bd1 {[%clk 0:00:04]} 78... Bg5 {[%clk 0:00:04.7]} 79. Be2
{[%clk 0:00:04.9]} 79... Bf6 {[%clk 0:00:04.9]} 80. Bd1 {[%clk 0:00:05.8]} 80...
Bg5 {[%clk 0:00:05.2]} 81. Ke8 {[%clk 0:00:06.5]} 81... Bf6 {[%clk 0:00:04.4]}
82. Kf7 {[%clk 0:00:07.4]} 1/2-1/2

[Event "*** SCC Grand Prix: Titled Tuesday Blitz"]
[Site "Chess.com"]
[Date "2020.08.25"]
[Round "4"]
[White "RusPakhom"]
[Black "ketster"]
[Result "1/2-1/2"]
[WhiteElo "2283"]
[BlackElo "2444"]
[TimeControl "180+1"]
[EndTime "10:42:59 PDT"]
[Termination "Game drawn - insufficient material"]

1. e4 {[%clk 0:03:00.5]} 1... e5 {[%clk 0:02:59.6]} 2. Nf3 {[%clk 0:03:00.1]}
2... Nc6 {[%clk 0:02:58.9]} 3. Bc4 {[%clk 0:03:00.5]} 3... Nf6 {[%clk
0:02:58.5]} 4. Ng5 {[%clk 0:03:00.9]} 4... d5 {[%clk 0:02:57.8]} 5. exd5 {[%clk
0:03:01.8]} 5... Na5 {[%clk 0:02:57.6]} 6. Bb5+ {[%clk 0:03:02.1]} 6... c6
{[%clk 0:02:54.4]} 7. dxc6 {[%clk 0:03:02.9]} 7... bxc6 {[%clk 0:02:54.9]} 8.
Qf3 {[%clk 0:03:03.2]} 8... Rb8 {[%clk 0:02:52.1]} 9. Bd3 {[%clk 0:03:02.7]}
9... Be7 {[%clk 0:02:44.9]} 10. O-O {[%clk 0:02:53.3]} 10... h6 {[%clk
0:02:41.7]} 11. Ne4 {[%clk 0:02:52.1]} 11... Nd5 {[%clk 0:02:41.5]} 12. Ng3
{[%clk 0:02:50.3]} 12... Nf4 {[%clk 0:02:36.8]} 13. Bf5 {[%clk 0:02:43.7]} 13...
O-O {[%clk 0:02:27.2]} 14. Bxc8 {[%clk 0:02:41.7]} 14... Qxc8 {[%clk 0:02:26.8]}
15. d4 {[%clk 0:02:35.1]} 15... Ne6 {[%clk 0:02:02.9]} 16. dxe5 {[%clk
0:02:21.5]} 16... Nc4 {[%clk 0:02:02.8]} 17. Nf5 {[%clk 0:02:16.9]} 17... Qc7
{[%clk 0:01:45.9]} 18. Qg3 {[%clk 0:02:14.6]} 18... Qxe5 {[%clk 0:01:36.4]} 19.
Qxe5 {[%clk 0:02:11.5]} 19... Nxe5 {[%clk 0:01:35.8]} 20. Nxe7+ {[%clk
0:02:11.5]} 20... Kh8 {[%clk 0:01:36.1]} 21. Nf5 {[%clk 0:02:10.4]} 21... Rfd8
{[%clk 0:01:33.4]} 22. Nc3 {[%clk 0:02:09.4]} 22... Nd4 {[%clk 0:01:33]} 23. Bf4
{[%clk 0:02:02.9]} 23... Nxf5 {[%clk 0:01:26.1]} 24. Bxe5 {[%clk 0:02:01.6]}
24... Rxb2 {[%clk 0:01:26.3]} 25. Rad1 {[%clk 0:01:56]} 25... Re8 {[%clk
0:01:25.7]} 26. Rfe1 {[%clk 0:01:53.9]} 26... Rxc2 {[%clk 0:01:25.2]} 27. g4
{[%clk 0:01:42.8]} 27... Nh4 {[%clk 0:01:17.5]} 28. Bxg7+ {[%clk 0:01:22.5]}
28... Kxg7 {[%clk 0:01:18.4]} 29. Rxe8 {[%clk 0:01:22]} 29... Rxc3 {[%clk
0:01:18.5]} 30. Re3 {[%clk 0:01:15.1]} 30... Rc2 {[%clk 0:01:16.8]} 31. Ra3
{[%clk 0:01:14.4]} 31... c5 {[%clk 0:01:10.9]} 32. Rxa7 {[%clk 0:01:14.1]} 32...
Nf3+ {[%clk 0:01:11.1]} 33. Kg2 {[%clk 0:01:12.2]} 33... Nd2 {[%clk 0:01:09.2]}
34. a4 {[%clk 0:01:00.1]} 34... Ne4 {[%clk 0:01:06.7]} 35. Rf1 {[%clk 0:00:59]}
35... c4 {[%clk 0:01:04.5]} 36. a5 {[%clk 0:00:55.9]} 36... Ra2 {[%clk
0:01:00.2]} 37. a6 {[%clk 0:00:40.8]} 37... c3 {[%clk 0:00:58.9]} 38. Rc1 {[%clk
0:00:36.4]} 38... Rxf2+ {[%clk 0:00:49.7]} 39. Kg1 {[%clk 0:00:36.1]} 39... Ra2
{[%clk 0:00:31.9]} 40. Re7 {[%clk 0:00:32.8]} 40... Ng5 {[%clk 0:00:29.8]} 41.
Rxc3 {[%clk 0:00:25.3]} 41... Rxa6 {[%clk 0:00:28.4]} 42. h4 {[%clk 0:00:23.6]}
42... Ra1+ {[%clk 0:00:28.3]} 43. Kg2 {[%clk 0:00:21.3]} 43... Ra2+ {[%clk
0:00:28.1]} 44. Kg3 {[%clk 0:00:20.3]} 44... Ne6 {[%clk 0:00:23.2]} 45. Rf3
{[%clk 0:00:19.6]} 45... Nd8 {[%clk 0:00:20.4]} 46. Rd7 {[%clk 0:00:18.7]} 46...
Ra8 {[%clk 0:00:20.7]} 47. g5 {[%clk 0:00:18.7]} 47... hxg5 {[%clk 0:00:20.4]}
48. hxg5 {[%clk 0:00:19.6]} 48... Kg6 {[%clk 0:00:20.3]} 49. Kg4 {[%clk
0:00:19.5]} 49... Ra4+ {[%clk 0:00:18.3]} 50. Rf4 {[%clk 0:00:19.7]} 50... Rxf4+
{[%clk 0:00:18.2]} 51. Kxf4 {[%clk 0:00:20.6]} 51... Ne6+ {[%clk 0:00:18.6]} 52.
Kg4 {[%clk 0:00:20.4]} 52... Nxg5 {[%clk 0:00:18.9]} 53. Rd6+ {[%clk 0:00:20.5]}
53... f6 {[%clk 0:00:19]} 54. Ra6 {[%clk 0:00:20.4]} 54... Nf7 {[%clk
0:00:19.1]} 55. Kf4 {[%clk 0:00:19.9]} 55... Ne5 {[%clk 0:00:19.4]} 56. Ra8
{[%clk 0:00:18.9]} 56... Nf7 {[%clk 0:00:19.3]} 57. Rg8+ {[%clk 0:00:18.9]}
57... Kh7 {[%clk 0:00:19.5]} 58. Rg1 {[%clk 0:00:18.5]} 58... Nh6 {[%clk
0:00:18.6]} 59. Rg2 {[%clk 0:00:16.3]} 59... Nf7 {[%clk 0:00:16.9]} 60. Kf5
{[%clk 0:00:16]} 60... Nh6+ {[%clk 0:00:14.4]} 61. Kxf6 {[%clk 0:00:14.9]} 61...
Ng8+ {[%clk 0:00:15.3]} 62. Kf7 {[%clk 0:00:14.5]} 62... Nh6+ {[%clk 0:00:15.5]}
63. Kf8 {[%clk 0:00:14.7]} 63... Nf5 {[%clk 0:00:15.3]} 64. Rg5 {[%clk
0:00:12.1]} 64... Nd6 {[%clk 0:00:14.2]} 65. Ke7 {[%clk 0:00:10.2]} 65... Ne4
{[%clk 0:00:13.6]} 66. Rg4 {[%clk 0:00:09]} 66... Nf2 {[%clk 0:00:12.8]} 67. Rg2
{[%clk 0:00:08.8]} 67... Ne4 {[%clk 0:00:12.2]} 68. Kf7 {[%clk 0:00:08.7]} 68...
Kh6 {[%clk 0:00:12.1]} 69. Ke6 {[%clk 0:00:07.4]} 69... Kh5 {[%clk 0:00:10.8]}
70. Kf5 {[%clk 0:00:07.7]} 70... Nd6+ {[%clk 0:00:11.1]} 71. Ke5 {[%clk
0:00:07.3]} 71... Nf7+ {[%clk 0:00:10.3]} 72. Kf6 {[%clk 0:00:07.6]} 72... Nd6
{[%clk 0:00:10]} 73. Ke6 {[%clk 0:00:07.8]} 73... Nc4 {[%clk 0:00:08.2]} 74. Kd5
{[%clk 0:00:07.1]} 74... Ne3+ {[%clk 0:00:08]} 75. Ke4 {[%clk 0:00:06.8]} 75...
Nxg2 {[%clk 0:00:08.9]} 1/2-1/2